[Event "Titled Tuesday Blitz May 4 2021"]
[White "Cunjalo, Faris"]
[Black "Shapiro, David"]
[WhiteFideId "14410710"]
[BlackFideId "24133523"]
[WhiteElo "2796"]
[BlackElo "2601"]
[Result "1-0"]
[Round "04"]
[TimeControl "180+1"]
[Date "2021.05.04"]
[WhiteClock "0:00:04"]
[BlackClock "0:00:09"]

1. f4 {[%clk 0:02:59]}  d5 {[%clk 0:02:58]} 2. Nf3 {[%clk 0:02:59]}  Nc6 {[%clk 0:02:57]} 3. e3 {[%clk 0:02:57]}  Bg4 {[%clk 0:02:52]} 4. Bb5 {[%clk 0:02:56]}  e6 {[%clk 0:02:48]} 5. h3 {[%clk 0:02:56]}  Bxf3 {[%clk 0:02:47]} 6. Qxf3 {[%clk 0:02:57]}  Bd6 {[%clk 0:02:46]} 7. d4 {[%clk 0:02:53]}  a6 {[%clk 0:02:41]} 8. Be2 {[%clk 0:02:47]}  f5 {[%clk 0:02:35]} 9. g4 {[%clk 0:02:41]}  Qh4+ {[%clk 0:02:26]} 10. Qf2 {[%clk 0:02:40]}  Qxf2+ {[%clk 0:02:26]} 11. Kxf2 {[%clk 0:02:41]}  Nf6 {[%clk 0:02:26]} 12. Nd2 {[%clk 0:02:40]}  Ne4+ {[%clk 0:02:21]} 13. Nxe4 {[%clk 0:02:39]}  fxe4 {[%clk 0:02:22]} 14. Bd2 {[%clk 0:02:28]}  O-O {[%clk 0:02:17]} 15. Kg2 {[%clk 0:02:15]}  Ne7 {[%clk 0:02:13]} 16. c4 {[%clk 0:02:12]}  c6 {[%clk 0:02:12]} 17. h4 {[%clk 0:02:07]}  c5 {[%clk 0:01:57]} 18. dxc5 {[%clk 0:01:11]}  Bxc5 {[%clk 0:01:37]} 19. b4 {[%clk 0:01:11]}  Bd6 {[%clk 0:01:20]} 20. c5 {[%clk 0:01:10]}  Bc7 {[%clk 0:01:21]} 21. Bc3 {[%clk 0:00:49]}  h5 {[%clk 0:01:19]} 22. gxh5 {[%clk 0:00:39]}  Nf5 {[%clk 0:01:18]} 23. Rh3 {[%clk 0:00:40]}  d4 {[%clk 0:01:16]} 24. Bxd4 {[%clk 0:00:39]}  Nxd4 {[%clk 0:01:16]} 25. exd4 {[%clk 0:00:40]}  Rxf4 {[%clk 0:01:12]} 26. Bc4 {[%clk 0:00:31]}  Raf8 {[%clk 0:00:55]} 27. Bxe6+ {[%clk 0:00:31]}  Kh8 {[%clk 0:00:55]} 28. d5 {[%clk 0:00:31]}  Be5 {[%clk 0:00:49]} 29. Re1 {[%clk 0:00:29]}  Rf2+ {[%clk 0:00:50]} 30. Kh1 {[%clk 0:00:30]}  Bd4 {[%clk 0:00:25]} 31. d6 {[%clk 0:00:27]}  e3 {[%clk 0:00:17]} 32. Rhxe3 {[%clk 0:00:14]}  Bxe3 {[%clk 0:00:18]} 33. Rxe3 {[%clk 0:00:15]}  Rf1+ {[%clk 0:00:18]} 34. Kg2 {[%clk 0:00:15]}  R8f2+ {[%clk 0:00:18]} 35. Kg3 {[%clk 0:00:16]}  Rd2 {[%clk 0:00:19]} 36. d7 {[%clk 0:00:14]}  Rfd1 {[%clk 0:00:11]} 37. Bf5 {[%clk 0:00:13]}  Kg8 {[%clk 0:00:10]} 38. Bg6 {[%clk 0:00:08]}  Rg1+ {[%clk 0:00:08]} 39. Kf3 {[%clk 0:00:06]}  Rf1+ {[%clk 0:00:06]} 40. Kg4 {[%clk 0:00:06]}  Rxd7 {[%clk 0:00:07]} 41. Re8+ {[%clk 0:00:04]}  Rf8 {[%clk 0:00:07]} 42. Bh7+ {[%clk 0:00:04]}  Kxh7 {[%clk 0:00:07]} 43. Rxf8 {[%clk 0:00:04]}  Rd4+ {[%clk 0:00:08]} 44. Rf4 {[%clk 0:00:04]}  Rxb4 {[%clk 0:00:09]} 45. Rxb4 {[%clk 0:00:04]} 1-0


[Site "https://www.chess.com"]

[Event "Titled Tuesday Blitz May 4 2021"]
[White "Darini, Pouria"]
[Black "Bluebaum, Matthias"]
[WhiteFideId "12502200"]
[BlackFideId "24651516"]
[WhiteElo "2634"]
[BlackElo "2816"]
[Result "1-0"]
[Round "04"]
[TimeControl "180+1"]
[Date "2021.05.04"]
[WhiteClock "0:00:09"]
[BlackClock "0:00:01"]

1. e4 {[%clk 0:03:00]}  c6 {[%clk 0:02:59]} 2. Nf3 {[%clk 0:02:59]}  d5 {[%clk 0:03:00]} 3. d3 {[%clk 0:03:00]}  dxe4 {[%clk 0:02:59]} 4. dxe4 {[%clk 0:02:59]}  Qxd1+ {[%clk 0:03:00]} 5. Kxd1 {[%clk 0:03:00]}  Nf6 {[%clk 0:03:01]} 6. Nfd2 {[%clk 0:02:58]}  g5 {[%clk 0:03:00]} 7. Nc3 {[%clk 0:02:55]}  g4 {[%clk 0:02:54]} 8. Nc4 {[%clk 0:02:42]}  Be6 {[%clk 0:02:49]} 9. f3 {[%clk 0:02:23]}  gxf3 {[%clk 0:02:43]} 10. gxf3 {[%clk 0:02:24]}  Nbd7 {[%clk 0:02:42]} 11. Bf4 {[%clk 0:02:12]}  O-O-O {[%clk 0:02:40]} 12. Ke1 {[%clk 0:02:08]}  Nh5 {[%clk 0:02:35]} 13. Be3 {[%clk 0:02:06]}  Kb8 {[%clk 0:02:33]} 14. Rg1 {[%clk 0:01:55]}  Bxc4 {[%clk 0:02:03]} 15. Bxc4 {[%clk 0:01:53]}  Ne5 {[%clk 0:02:04]} 16. Be2 {[%clk 0:01:51]}  Ng6 {[%clk 0:02:04]} 17. Rd1 {[%clk 0:01:20]}  Bg7 {[%clk 0:02:01]} 18. Rxd8+ {[%clk 0:00:47]}  Rxd8 {[%clk 0:02:02]} 19. Nd1 {[%clk 0:00:45]}  Be5 {[%clk 0:01:54]} 20. Rg5 {[%clk 0:00:44]}  Nhf4 {[%clk 0:01:40]} 21. Bf1 {[%clk 0:00:31]}  f6 {[%clk 0:01:13]} 22. Rg4 {[%clk 0:00:32]}  Ne6 {[%clk 0:01:11]} 23. c3 {[%clk 0:00:30]}  Bf4 {[%clk 0:01:09]} 24. Bxf4+ {[%clk 0:00:23]}  Nexf4 {[%clk 0:01:10]} 25. Ne3 {[%clk 0:00:23]}  Kc7 {[%clk 0:01:10]} 26. Be2 {[%clk 0:00:20]}  e6 {[%clk 0:01:06]} 27. Rg3 {[%clk 0:00:12]}  Kd6 {[%clk 0:01:04]} 28. Ng4 {[%clk 0:00:12]}  Ke7 {[%clk 0:01:05]} 29. Ne3 {[%clk 0:00:12]}  b5 {[%clk 0:01:03]} 30. Ng2 {[%clk 0:00:12]}  Nxg2+ {[%clk 0:00:59]} 31. Rxg2 {[%clk 0:00:13]}  Kf7 {[%clk 0:01:00]} 32. Rg4 {[%clk 0:00:13]}  h5 {[%clk 0:00:59]} 33. Rg1 {[%clk 0:00:09]}  Nf4 {[%clk 0:01:00]} 34. Bf1 {[%clk 0:00:09]}  a6 {[%clk 0:00:58]} 35. a3 {[%clk 0:00:10]}  c5 {[%clk 0:00:56]} 36. Be2 {[%clk 0:00:09]}  c4 {[%clk 0:00:56]} 37. Bf1 {[%clk 0:00:09]}  Rb8 {[%clk 0:00:48]} 38. Kf2 {[%clk 0:00:08]}  Rd8 {[%clk 0:00:46]} 39. Ke3 {[%clk 0:00:07]}  e5 {[%clk 0:00:46]} 40. Be2 {[%clk 0:00:08]}  Rb8 {[%clk 0:00:36]} 41. Rd1 {[%clk 0:00:07]}  Ke6 {[%clk 0:00:36]} 42. Bf1 {[%clk 0:00:07]}  a5 {[%clk 0:00:35]} 43. Rc1 {[%clk 0:00:07]}  Ke7 {[%clk 0:00:35]} 44. Rd1 {[%clk 0:00:06]}  Rg8 {[%clk 0:00:35]} 45. Kf2 {[%clk 0:00:06]}  h4 {[%clk 0:00:30]} 46. Rd2 {[%clk 0:00:07]}  Rc8 {[%clk 0:00:27]} 47. Rd1 {[%clk 0:00:07]}  Rb8 {[%clk 0:00:21]} 48. Rd2 {[%clk 0:00:08]}  Ne6 {[%clk 0:00:21]} 49. Rd5 {[%clk 0:00:07]}  Nc7 {[%clk 0:00:20]} 50. Rd2 {[%clk 0:00:07]}  Rb6 {[%clk 0:00:18]} 51. Bh3 {[%clk 0:00:07]}  Na6 {[%clk 0:00:14]} 52. Rd7+ {[%clk 0:00:06]}  Ke8 {[%clk 0:00:15]} 53. Rd5 {[%clk 0:00:07]}  Nc7 {[%clk 0:00:14]} 54. Rd7 {[%clk 0:00:06]}  Rc6 {[%clk 0:00:14]} 55. Rd2 {[%clk 0:00:06]}  Ra6 {[%clk 0:00:13]} 56. Bd7+ {[%clk 0:00:06]}  Ke7 {[%clk 0:00:13]} 57. Bf5 {[%clk 0:00:07]}  Ne8 {[%clk 0:00:12]} 58. Rd7+ {[%clk 0:00:06]}  Kf8 {[%clk 0:00:12]} 59. Rh7 {[%clk 0:00:06]}  Rd6 {[%clk 0:00:11]} 60. Rxh4 {[%clk 0:00:06]}  Rd2+ {[%clk 0:00:11]} 61. Ke3 {[%clk 0:00:06]}  Rxb2 {[%clk 0:00:12]} 62. Bg6 {[%clk 0:00:07]}  Nd6 {[%clk 0:00:07]} 63. Rh7 {[%clk 0:00:07]}  Rb3 {[%clk 0:00:06]} 64. Rd7 {[%clk 0:00:07]}  Rxc3+ {[%clk 0:00:07]} 65. Ke2 {[%clk 0:00:07]}  Rd3 {[%clk 0:00:07]} 66. h4 {[%clk 0:00:08]}  b4 {[%clk 0:00:07]} 67. h5 {[%clk 0:00:08]}  Ne8 {[%clk 0:00:03]} 68. Rf7+ {[%clk 0:00:08]}  Kg8 {[%clk 0:00:03]} 69. h6 {[%clk 0:00:09]}  Kh8 {[%clk 0:00:01]} 70. Rf8# {[%clk 0:00:09]} 1-0


[Site "https://www.chess.com"]

[Event "Titled Tuesday Blitz May 4 2021"]
[White "Davtyan, David Arm."]
[Black "Wu, Christopher"]
[WhiteFideId "13310046"]
[BlackFideId "2040875"]
[WhiteElo "2028"]
[BlackElo "2606"]
[Result "1/2-1/2"]
[Round "04"]
[TimeControl "180+1"]
[Date "2021.05.04"]
[WhiteClock "0:00:04"]
[BlackClock "0:00:21"]

1. e4 {[%clk 0:03:00]}  c5 {[%clk 0:02:59]} 2. Nc3 {[%clk 0:03:00]}  d6 {[%clk 0:02:59]} 3. f4 {[%clk 0:02:59]}  g6 {[%clk 0:02:58]} 4. Nf3 {[%clk 0:03:00]}  Bg7 {[%clk 0:02:58]} 5. Bc4 {[%clk 0:02:58]}  Nc6 {[%clk 0:02:58]} 6. O-O {[%clk 0:02:58]}  e6 {[%clk 0:02:56]} 7. d4 {[%clk 0:02:58]}  cxd4 {[%clk 0:02:52]} 8. Nb5 {[%clk 0:02:58]}  Nge7 {[%clk 0:02:47]} 9. Bb3 {[%clk 0:02:58]}  O-O {[%clk 0:02:46]} 10. Nbxd4 {[%clk 0:02:58]}  Nxd4 {[%clk 0:02:35]} 11. Nxd4 {[%clk 0:02:58]}  a6 {[%clk 0:02:33]} 12. Be3 {[%clk 0:02:56]}  b5 {[%clk 0:02:23]} 13. c3 {[%clk 0:02:51]}  Qc7 {[%clk 0:02:00]} 14. Bc2 {[%clk 0:02:24]}  e5 {[%clk 0:01:52]} 15. Nf3 {[%clk 0:02:17]}  Bg4 {[%clk 0:01:32]} 16. h3 {[%clk 0:02:13]}  Bxf3 {[%clk 0:01:31]} 17. Qxf3 {[%clk 0:02:14]}  exf4 {[%clk 0:01:31]} 18. Qxf4 {[%clk 0:02:03]}  Nc6 {[%clk 0:01:31]} 19. Bb3 {[%clk 0:01:59]}  Ne5 {[%clk 0:01:31]} 20. Bd5 {[%clk 0:01:54]}  Rac8 {[%clk 0:01:30]} 21. a4 {[%clk 0:01:43]}  Qd7 {[%clk 0:01:18]} 22. axb5 {[%clk 0:01:39]}  Qxb5 {[%clk 0:01:19]} 23. Qf2 {[%clk 0:01:31]}  h5 {[%clk 0:01:10]} 24. Bd4 {[%clk 0:01:23]}  Rc7 {[%clk 0:00:56]} 25. b4 {[%clk 0:01:20]}  Kh7 {[%clk 0:00:53]} 26. Ra5 {[%clk 0:01:16]}  Qd3 {[%clk 0:00:44]} 27. Rfa1 {[%clk 0:01:13]}  f5 {[%clk 0:00:38]} 28. Qf1 {[%clk 0:00:49]}  fxe4 {[%clk 0:00:36]} 29. Qxd3 {[%clk 0:00:44]}  exd3 {[%clk 0:00:37]} 30. Rd1 {[%clk 0:00:30]}  Rf5 {[%clk 0:00:20]} 31. Rxa6 {[%clk 0:00:24]}  Nc4 {[%clk 0:00:20]} 32. Bxg7 {[%clk 0:00:16]}  Ne3 {[%clk 0:00:19]} 33. Rxd3 {[%clk 0:00:14]}  Nxd5 {[%clk 0:00:18]} 34. Rxd6 {[%clk 0:00:10]}  Nf4 {[%clk 0:00:18]} 35. Rd7 {[%clk 0:00:07]}  Nxd3 {[%clk 0:00:14]} 36. Rxc7 {[%clk 0:00:07]}  Kg8 {[%clk 0:00:15]} 37. Bd4 {[%clk 0:00:07]}  Nf4 {[%clk 0:00:15]} 38. Re7 {[%clk 0:00:06]}  h4 {[%clk 0:00:15]} 39. b5 {[%clk 0:00:05]}  Nh5 {[%clk 0:00:15]} 40. b6 {[%clk 0:00:04]}  Ng3 {[%clk 0:00:15]} 41. Bf2 {[%clk 0:00:04]}  Rb5 {[%clk 0:00:16]} 42. Bxg3 {[%clk 0:00:03]}  hxg3 {[%clk 0:00:16]} 43. Re1 {[%clk 0:00:03]}  Rxb6 {[%clk 0:00:16]} 44. Kf1 {[%clk 0:00:03]}  Rb3 {[%clk 0:00:16]} 45. Re3 {[%clk 0:00:03]}  Rb1+ {[%clk 0:00:16]} 46. Ke2 {[%clk 0:00:04]}  Rb2+ {[%clk 0:00:16]} 47. Kf3 {[%clk 0:00:04]}  Kg7 {[%clk 0:00:16]} 48. Kxg3 {[%clk 0:00:05]}  Kf6 {[%clk 0:00:17]} 49. Rf3+ {[%clk 0:00:06]}  Kg5 {[%clk 0:00:17]} 50. Re3 {[%clk 0:00:05]}  Kf5 {[%clk 0:00:17]} 51. Rd3 {[%clk 0:00:06]}  Rc2 {[%clk 0:00:18]} 52. Rd5+ {[%clk 0:00:05]}  Ke4 {[%clk 0:00:18]} 53. Rc5 {[%clk 0:00:06]}  Rc1 {[%clk 0:00:16]} 54. Kg4 {[%clk 0:00:05]}  Rc2 {[%clk 0:00:17]} 55. g3 {[%clk 0:00:06]}  Rd2 {[%clk 0:00:16]} 56. h4 {[%clk 0:00:05]}  Rd6 {[%clk 0:00:16]} 57. Kg5 {[%clk 0:00:04]}  Kf3 {[%clk 0:00:16]} 58. g4 {[%clk 0:00:04]}  Re6 {[%clk 0:00:15]} 59. h5 {[%clk 0:00:04]}  gxh5 {[%clk 0:00:15]} 60. gxh5 {[%clk 0:00:05]}  Re1 {[%clk 0:00:16]} 61. Rf5+ {[%clk 0:00:04]}  Ke4 {[%clk 0:00:16]} 62. h6 {[%clk 0:00:04]}  Rg1+ {[%clk 0:00:17]} 63. Kf6 {[%clk 0:00:04]}  Rh1 {[%clk 0:00:17]} 64. Kg6 {[%clk 0:00:04]}  Rxh6+ {[%clk 0:00:18]} 65. Kxh6 {[%clk 0:00:02]}  Kxf5 {[%clk 0:00:18]} 66. Kh5 {[%clk 0:00:02]}  Ke5 {[%clk 0:00:19]} 67. Kh4 {[%clk 0:00:02]}  Kd5 {[%clk 0:00:19]} 68. Kg4 {[%clk 0:00:03]}  Kc4 {[%clk 0:00:20]} 69. Kf3 {[%clk 0:00:04]}  Kxc3 {[%clk 0:00:21]} 1/2-1/2


[Site "https://www.chess.com"]

[Event "Titled Tuesday Blitz May 4 2021"]
[White "Deac, Bogdan-Daniel"]
[Black "Fier, Alexandr"]
[WhiteFideId "1226380"]
[BlackFideId "2107139"]
[WhiteElo "2605"]
[BlackElo "2569"]
[Result "1-0"]
[Round "04"]
[TimeControl "180+1"]
[Date "2021.05.04"]
[WhiteClock "0:00:05"]
[BlackClock "0:00:11"]

1. e4 {[%clk 0:03:00]}  c5 {[%clk 0:02:59]} 2. Nf3 {[%clk 0:02:57]}  e6 {[%clk 0:02:54]} 3. d4 {[%clk 0:02:53]}  cxd4 {[%clk 0:02:54]} 4. Nxd4 {[%clk 0:02:54]}  Nf6 {[%clk 0:02:53]} 5. Nc3 {[%clk 0:02:54]}  Nc6 {[%clk 0:02:54]} 6. Qd3 {[%clk 0:02:53]}  Be7 {[%clk 0:02:40]} 7. Nxc6 {[%clk 0:01:53]}  bxc6 {[%clk 0:02:41]} 8. e5 {[%clk 0:01:54]}  Nd5 {[%clk 0:02:40]} 9. Qg3 {[%clk 0:01:50]}  g6 {[%clk 0:02:16]} 10. Bd3 {[%clk 0:01:49]}  Nxc3 {[%clk 0:02:02]} 11. bxc3 {[%clk 0:01:49]}  Qa5 {[%clk 0:02:01]} 12. Bd2 {[%clk 0:01:26]}  h5 {[%clk 0:01:57]} 13. c4 {[%clk 0:01:11]}  Bb4 {[%clk 0:01:44]} 14. Bxb4 {[%clk 0:01:10]}  Qxb4+ {[%clk 0:01:45]} 15. Ke2 {[%clk 0:01:11]}  Ba6 {[%clk 0:01:43]} 16. Qf4 {[%clk 0:01:06]}  h4 {[%clk 0:01:27]} 17. g4 {[%clk 0:01:01]}  Qc5 {[%clk 0:01:03]} 18. Rab1 {[%clk 0:00:52]}  g5 {[%clk 0:00:52]} 19. Qxg5 {[%clk 0:00:41]}  Bxc4 {[%clk 0:00:51]} 20. Qf4 {[%clk 0:00:34]}  Bxd3+ {[%clk 0:00:48]} 21. cxd3 {[%clk 0:00:33]}  Qc2+ {[%clk 0:00:46]} 22. Qd2 {[%clk 0:00:30]}  Qxd2+ {[%clk 0:00:46]} 23. Kxd2 {[%clk 0:00:31]}  Ke7 {[%clk 0:00:45]} 24. Rb7 {[%clk 0:00:31]}  a5 {[%clk 0:00:39]} 25. f4 {[%clk 0:00:29]}  h3 {[%clk 0:00:38]} 26. Ke3 {[%clk 0:00:28]}  a4 {[%clk 0:00:35]} 27. Rhb1 {[%clk 0:00:27]}  a3 {[%clk 0:00:34]} 28. R1b4 {[%clk 0:00:25]}  Ra5 {[%clk 0:00:32]} 29. Kf3 {[%clk 0:00:18]}  Rd5 {[%clk 0:00:31]} 30. Rb3 {[%clk 0:00:19]}  Ra8 {[%clk 0:00:28]} 31. R7b4 {[%clk 0:00:14]}  f6 {[%clk 0:00:23]} 32. exf6+ {[%clk 0:00:14]}  Kxf6 {[%clk 0:00:24]} 33. Kg3 {[%clk 0:00:14]}  Rh8 {[%clk 0:00:14]} 34. Rxa3 {[%clk 0:00:14]}  Rc5 {[%clk 0:00:15]} 35. Rc4 {[%clk 0:00:13]}  Rb5 {[%clk 0:00:14]} 36. Rb3 {[%clk 0:00:13]}  Ra5 {[%clk 0:00:10]} 37. a4 {[%clk 0:00:12]}  Rha8 {[%clk 0:00:09]} 38. Rb7 {[%clk 0:00:09]}  Rd5 {[%clk 0:00:06]} 39. d4 {[%clk 0:00:08]}  Rh8 {[%clk 0:00:06]} 40. Rbb4 {[%clk 0:00:06]}  Ra8 {[%clk 0:00:06]} 41. Rb7 {[%clk 0:00:06]}  Rh8 {[%clk 0:00:06]} 42. Kf3 {[%clk 0:00:06]}  Ke7 {[%clk 0:00:07]} 43. Rb3 {[%clk 0:00:05]}  Ra8 {[%clk 0:00:07]} 44. Kg3 {[%clk 0:00:05]}  Rda5 {[%clk 0:00:07]} 45. Kxh3 {[%clk 0:00:04]}  Rh8+ {[%clk 0:00:08]} 46. Kg3 {[%clk 0:00:03]}  Kd6 {[%clk 0:00:07]} 47. h4 {[%clk 0:00:03]}  Kd5 {[%clk 0:00:07]} 48. Rbb4 {[%clk 0:00:03]}  Ke4 {[%clk 0:00:08]} 49. h5 {[%clk 0:00:03]}  Rd5 {[%clk 0:00:08]} 50. a5 {[%clk 0:00:03]}  Rxa5 {[%clk 0:00:07]} 51. d5+ {[%clk 0:00:03]}  Kxd5 {[%clk 0:00:08]} 52. Rd4+ {[%clk 0:00:04]}  Kc5 {[%clk 0:00:08]} 53. Rbc4+ {[%clk 0:00:04]}  Kb5 {[%clk 0:00:09]} 54. Rc3 {[%clk 0:00:05]}  d5 {[%clk 0:00:09]} 55. Rd2 {[%clk 0:00:05]}  c5 {[%clk 0:00:09]} 56. Re2 {[%clk 0:00:04]}  d4 {[%clk 0:00:09]} 57. Rc1 {[%clk 0:00:04]}  d3 {[%clk 0:00:09]} 58. Rxe6 {[%clk 0:00:04]}  c4 {[%clk 0:00:10]} 59. Re5+ {[%clk 0:00:04]}  Kb4 {[%clk 0:00:10]} 60. Rxa5 {[%clk 0:00:05]}  d2 {[%clk 0:00:11]} 61. Raa1 {[%clk 0:00:04]}  dxc1=Q {[%clk 0:00:10]} 62. Rxc1 {[%clk 0:00:05]}  c3 {[%clk 0:00:09]} 63. Kh4 {[%clk 0:00:06]}  Kc4 {[%clk 0:00:10]} 64. g5 {[%clk 0:00:06]}  Kd3 {[%clk 0:00:11]} 65. g6 {[%clk 0:00:06]}  Kd2 {[%clk 0:00:11]} 66. Rh1 {[%clk 0:00:05]}  Re8 {[%clk 0:00:10]} 67. g7 {[%clk 0:00:05]}  c2 {[%clk 0:00:11]} 68. h6 {[%clk 0:00:04]}  Re1 {[%clk 0:00:11]} 69. Rxe1 {[%clk 0:00:04]}  Kxe1 {[%clk 0:00:12]} 70. g8=Q {[%clk 0:00:05]}  Kf2 {[%clk 0:00:11]} 71. Qc4 {[%clk 0:00:05]} 1-0


[Site "https://www.chess.com"]

[Event "Titled Tuesday Blitz May 4 2021"]
[White "Diaz Perez, Michel Alejandro"]
[Black "Alboredo, Julia"]
[WhiteFideId "3517179"]
[BlackFideId "2124807"]
[WhiteElo "2337"]
[BlackElo "2041"]
[Result "0-1"]
[Round "04"]
[TimeControl "180+1"]
[Date "2021.05.04"]
[WhiteClock "0:00:18"]
[BlackClock "0:00:33"]

1. d4 {[%clk 0:03:00]}  Nf6 {[%clk 0:02:59]} 2. Nf3 {[%clk 0:03:01]}  g6 {[%clk 0:02:59]} 3. Nc3 {[%clk 0:03:00]}  d5 {[%clk 0:02:57]} 4. Bg5 {[%clk 0:03:00]}  Bg7 {[%clk 0:02:57]} 5. e3 {[%clk 0:02:59]}  O-O {[%clk 0:02:57]} 6. Bd3 {[%clk 0:02:59]}  c5 {[%clk 0:02:56]} 7. dxc5 {[%clk 0:02:45]}  Nc6 {[%clk 0:02:55]} 8. Bb5 {[%clk 0:02:41]}  Qa5 {[%clk 0:02:47]} 9. O-O {[%clk 0:02:34]}  a6 {[%clk 0:02:45]} 10. Be2 {[%clk 0:01:36]}  Rd8 {[%clk 0:02:38]} 11. Nd4 {[%clk 0:01:26]}  Qxc5 {[%clk 0:02:35]} 12. Nxc6 {[%clk 0:01:21]}  bxc6 {[%clk 0:02:32]} 13. Na4 {[%clk 0:01:20]}  Qa5 {[%clk 0:02:27]} 14. c3 {[%clk 0:01:20]}  c5 {[%clk 0:02:01]} 15. Rb1 {[%clk 0:01:16]}  Bd7 {[%clk 0:01:58]} 16. b4 {[%clk 0:01:13]}  Qxa4 {[%clk 0:01:57]} 17. Qc1 {[%clk 0:01:11]}  c4 {[%clk 0:01:50]} 18. Bf3 {[%clk 0:01:09]}  Qc6 {[%clk 0:01:49]} 19. Rd1 {[%clk 0:01:05]}  Bf5 {[%clk 0:01:47]} 20. Rb2 {[%clk 0:01:05]}  Bd3 {[%clk 0:01:45]} 21. Rbd2 {[%clk 0:01:04]}  Rd7 {[%clk 0:01:38]} 22. Rxd3 {[%clk 0:00:57]}  cxd3 {[%clk 0:01:39]} 23. Rxd3 {[%clk 0:00:58]}  Ne4 {[%clk 0:01:36]} 24. Bf4 {[%clk 0:00:55]}  Rc8 {[%clk 0:01:30]} 25. h4 {[%clk 0:00:39]}  Bxc3 {[%clk 0:01:25]} 26. Qa3 {[%clk 0:00:33]}  Bg7 {[%clk 0:01:14]} 27. h5 {[%clk 0:00:25]}  Qc1+ {[%clk 0:01:13]} 28. Qxc1 {[%clk 0:00:25]}  Rxc1+ {[%clk 0:01:14]} 29. Kh2 {[%clk 0:00:26]}  Nxf2 {[%clk 0:01:03]} 30. Rd2 {[%clk 0:00:24]}  e5 {[%clk 0:00:38]} 31. Bg3 {[%clk 0:00:22]}  e4 {[%clk 0:00:36]} 32. Be2 {[%clk 0:00:18]}  Rh1# {[%clk 0:00:33]} 0-1


[Site "https://www.chess.com"]

[Event "Titled Tuesday Blitz May 4 2021"]
[White "Dogan, Mire Deniz"]
[Black "Selbes, Tarik"]
[WhiteFideId "6317456"]
[BlackFideId "6302513"]
[WhiteElo "1850"]
[BlackElo "2290"]
[Result "1-0"]
[Round "04"]
[TimeControl "180+1"]
[Date "2021.05.04"]
[WhiteClock "0:00:36"]
[BlackClock "0:00:21"]

1. d4 {[%clk 0:03:00]}  b6 {[%clk 0:02:55]} 2. c4 {[%clk 0:02:59]}  e6 {[%clk 0:02:54]} 3. Nc3 {[%clk 0:02:54]}  Bb7 {[%clk 0:02:53]} 4. e4 {[%clk 0:02:52]}  Bb4 {[%clk 0:02:52]} 5. f3 {[%clk 0:02:50]}  Ne7 {[%clk 0:02:51]} 6. Bd3 {[%clk 0:02:50]}  O-O {[%clk 0:02:48]} 7. Ne2 {[%clk 0:02:50]}  d6 {[%clk 0:02:47]} 8. O-O {[%clk 0:02:51]}  c5 {[%clk 0:02:43]} 9. d5 {[%clk 0:02:49]}  Bxc3 {[%clk 0:02:42]} 10. Nxc3 {[%clk 0:02:48]}  e5 {[%clk 0:02:41]} 11. f4 {[%clk 0:02:47]}  exf4 {[%clk 0:02:40]} 12. Bxf4 {[%clk 0:02:32]}  Ng6 {[%clk 0:02:40]} 13. Qh5 {[%clk 0:02:18]}  a6 {[%clk 0:02:30]} 14. Rf3 {[%clk 0:02:08]}  Qe7 {[%clk 0:01:52]} 15. Rh3 {[%clk 0:01:56]}  h6 {[%clk 0:01:48]} 16. Bxh6 {[%clk 0:01:41]}  gxh6 {[%clk 0:01:39]} 17. Qxh6 {[%clk 0:01:42]}  Re8 {[%clk 0:01:39]} 18. Rf1 {[%clk 0:01:11]}  Bc8 {[%clk 0:00:46]} 19. Qh7+ {[%clk 0:00:54]}  Kf8 {[%clk 0:00:46]} 20. Rg3 {[%clk 0:00:47]}  Ra7 {[%clk 0:00:26]} 21. Rxg6 {[%clk 0:00:42]}  Qe5 {[%clk 0:00:22]} 22. Rg8+ {[%clk 0:00:39]}  Ke7 {[%clk 0:00:21]} 23. Qxf7+ {[%clk 0:00:36]} 1-0


[Site "https://www.chess.com"]

[Event "Titled Tuesday Blitz May 4 2021"]
[White "Efremov, Vladislav"]
[Black "Jian, Alex"]
[WhiteFideId "44159935"]
[BlackFideId "30901022"]
[WhiteElo "2022"]
[BlackElo "2084"]
[Result "0-1"]
[Round "04"]
[TimeControl "180+1"]
[Date "2021.05.04"]
[WhiteClock "0:00:03"]
[BlackClock "0:00:02"]

1. d4 {[%clk 0:03:00]}  Nf6 {[%clk 0:02:59]} 2. c4 {[%clk 0:03:00]}  e6 {[%clk 0:02:59]} 3. Nf3 {[%clk 0:03:00]}  d5 {[%clk 0:02:59]} 4. Nc3 {[%clk 0:02:59]}  Be7 {[%clk 0:02:59]} 5. Bf4 {[%clk 0:02:59]}  O-O {[%clk 0:02:59]} 6. e3 {[%clk 0:02:59]}  b6 {[%clk 0:02:59]} 7. Qc2 {[%clk 0:02:57]}  Bb7 {[%clk 0:02:58]} 8. Rd1 {[%clk 0:02:58]}  Nbd7 {[%clk 0:02:53]} 9. Bd3 {[%clk 0:02:53]}  a6 {[%clk 0:02:45]} 10. cxd5 {[%clk 0:02:52]}  exd5 {[%clk 0:02:44]} 11. O-O {[%clk 0:02:52]}  c5 {[%clk 0:02:43]} 12. dxc5 {[%clk 0:02:51]}  bxc5 {[%clk 0:02:43]} 13. Bf5 {[%clk 0:02:47]}  Nb6 {[%clk 0:02:15]} 14. e4 {[%clk 0:02:09]}  d4 {[%clk 0:02:11]} 15. e5 {[%clk 0:02:09]}  Nfd5 {[%clk 0:01:41]} 16. Bxh7+ {[%clk 0:02:07]}  Kh8 {[%clk 0:01:41]} 17. Nxd5 {[%clk 0:02:01]}  Nxd5 {[%clk 0:01:42]} 18. Bg3 {[%clk 0:01:43]}  Nb4 {[%clk 0:01:33]} 19. Qf5 {[%clk 0:01:38]}  g6 {[%clk 0:01:01]} 20. Qh3 {[%clk 0:00:49]}  Kg7 {[%clk 0:01:01]} 21. Bf4 {[%clk 0:00:49]}  g5 {[%clk 0:00:53]} 22. Nxg5 {[%clk 0:00:42]}  Bxg5 {[%clk 0:00:53]} 23. Qg4 {[%clk 0:00:39]}  Kxh7 {[%clk 0:00:41]} 24. Bxg5 {[%clk 0:00:39]}  Qb6 {[%clk 0:00:38]} 25. Qh5+ {[%clk 0:00:35]}  Kg7 {[%clk 0:00:38]} 26. Bf6+ {[%clk 0:00:35]}  Qxf6 {[%clk 0:00:30]} 27. exf6+ {[%clk 0:00:36]}  Kxf6 {[%clk 0:00:30]} 28. Qxc5 {[%clk 0:00:36]}  Rg8 {[%clk 0:00:28]} 29. f3 {[%clk 0:00:36]}  Nd5 {[%clk 0:00:20]} 30. Qxd4+ {[%clk 0:00:36]}  Ke6 {[%clk 0:00:19]} 31. Rfe1+ {[%clk 0:00:35]}  Kd7 {[%clk 0:00:19]} 32. Qb6 {[%clk 0:00:34]}  Rab8 {[%clk 0:00:12]} 33. Qc5 {[%clk 0:00:30]}  Rg5 {[%clk 0:00:10]} 34. h4 {[%clk 0:00:28]}  Rf5 {[%clk 0:00:05]} 35. Re7+ {[%clk 0:00:22]}  Kd8 {[%clk 0:00:05]} 36. Qd6+ {[%clk 0:00:21]}  Kc8 {[%clk 0:00:04]} 37. Qc7+ {[%clk 0:00:22]}  Nxc7 {[%clk 0:00:03]} 38. Rc1 {[%clk 0:00:20]}  Bc6 {[%clk 0:00:02]} 39. Rxc6 {[%clk 0:00:20]}  Rb7 {[%clk 0:00:03]} 40. b3 {[%clk 0:00:15]}  Rd5 {[%clk 0:00:03]} 41. Rxf7 {[%clk 0:00:14]}  Rd1+ {[%clk 0:00:03]} 42. Kh2 {[%clk 0:00:14]}  Rd7 {[%clk 0:00:04]} 43. Rf8+ {[%clk 0:00:13]}  Rd8 {[%clk 0:00:04]} 44. Rf7 {[%clk 0:00:13]}  Rd7 {[%clk 0:00:04]} 45. Rxd7 {[%clk 0:00:13]}  Kxd7 {[%clk 0:00:04]} 46. Rg6 {[%clk 0:00:13]}  Rb5 {[%clk 0:00:05]} 47. g4 {[%clk 0:00:12]}  Ra5 {[%clk 0:00:05]} 48. a4 {[%clk 0:00:12]}  Rc5 {[%clk 0:00:05]} 49. h5 {[%clk 0:00:12]}  Ne6 {[%clk 0:00:04]} 50. h6 {[%clk 0:00:11]}  Rc8 {[%clk 0:00:05]} 51. g5 {[%clk 0:00:10]}  Ke7 {[%clk 0:00:05]} 52. Kg3 {[%clk 0:00:09]}  Kf7 {[%clk 0:00:05]} 53. Rf6+ {[%clk 0:00:09]}  Ke7 {[%clk 0:00:06]} 54. Kg4 {[%clk 0:00:08]}  Rg8 {[%clk 0:00:03]} 55. f4 {[%clk 0:00:08]}  a5 {[%clk 0:00:03]} 56. Kh4 {[%clk 0:00:05]}  Rh8 {[%clk 0:00:03]} 57. Kh5 {[%clk 0:00:05]}  Rg8 {[%clk 0:00:03]} 58. h7 {[%clk 0:00:05]}  Rh8 {[%clk 0:00:04]} 59. Kh6 {[%clk 0:00:06]}  Rd8 {[%clk 0:00:02]} 60. Rxe6+ {[%clk 0:00:05]}  Kxe6 {[%clk 0:00:02]} 61. g6 {[%clk 0:00:06]}  Kf6 {[%clk 0:00:02]} 62. g7 {[%clk 0:00:06]}  Rd1 {[%clk 0:00:02]} 63. g8=Q {[%clk 0:00:03]}  Rh1# {[%clk 0:00:02]} 0-1


[Site "https://www.chess.com"]